fUSD/lending_fUSD_20240205
["ID","MTS","AMOUNT","RATE_DAILY","PERIOD"]
[313295584,1707103842572,-829.74609586,0.0004181,120]
[313295587,1707103842610,-309.95488746,0.00041844,4]
[313295589,1707103842636,-137.51166828,0.00041858,10]
[313295591,1707103842684,-777.9999999,0.00041858,10]
[313295594,1707103842724,-311.35189754,0.00041858,10]
[313295596,1707103842736,-160.88585138,0.00041882,2]
[313295598,1707103842753,-270.76225108,0.00041892,11]
[313295640,1707103843536,-1699.7016505,0.00041892,11]
[313295647,1707103843691,-5025.77498105,0.00041892,11]
[313295649,1707103843707,-16048.50824106,0.00041892,8]
[313295651,1707103843729,-1107.55733819,0.00041892,8]
[313295654,1707103843754,-666.03301927,0.00041892,8]
[313295675,1707103844091,-2856.85403804,0.00041892,8]
[313295682,1707103844167,-396.77588872,0.00041892,8]
[313295821,1707103846852,-218.46793198,0.00041809,4]
[313295823,1707103846885,-33.73486802,0.00041892,8]
[313295841,1707105032157,-191.15944048,0.00032263,4]
[313295842,1707105032166,-155.0,0.00032264,2]
[313295843,1707105032175,-159.41380954,0.00032296,2]
[313295844,1707105032184,-681.11686415,0.00032298,3]
[313295845,1707105032196,-179.6156368,0.00032298,3]
[313295846,1707105032205,-89.81167713,0.00032389,2]
[313295847,1707105032221,-71.07417425,0.00032389,2]
[313295848,1707105032230,-15000.0,0.0003239,2]
[313295849,1707105032239,-303.32228515,0.00032396,4]
[313295850,1707105032248,-9408.96608539,0.00032397,4]
[313295851,1707105032257,-138032.4660098,0.00032398,2]
[313295852,1707105032269,-36412.04720201,0.00032398,2]
[313295853,1707105032277,-96668.29140725,0.00032399,2]
[313295854,1707105032293,-156122.55962915,0.00032399,2]
[313295855,1707105032491,-104481.91226071,0.00032399,2]
[313295857,1707105032503,-61915.30894627,0.00032399,2]
[313295859,1707105032515,-23736.57730222,0.00032399,2]
[313295860,1707105032526,-7924.14223101,0.00032399,2]
[313295865,1707105038224,-512.85499007,0.00031751,2]
[313295866,1707105038239,-1343.47685817,0.00031751,2]
[313295867,1707105038249,-3201.52918485,0.00032297,2]
[313295868,1707105038258,-3637.74110104,0.00032399,2]
[313295869,1707105038283,-4723.37346589,0.00032399,2]
[313295870,1707105038341,-261.9332025,0.00032399,2]
[313295871,1707105038352,-473.3383626,0.00032399,2]
[313295872,1707105038507,-31677.77045552,0.00032399,2]
[313295873,1707105038519,-5068.30342588,0.00032399,2]
[313295874,1707105038567,-1109.26409011,0.00032399,2]
[313295875,1707105038578,-5890.73590989,0.000324,3]
[313295898,1707105041028,-899.53046843,0.000324,3]
[313295900,1707105041040,-300.0,0.000324,3]
[313295932,1707105043351,-3068.79317736,0.000324,3]
[313295933,1707105043416,-2121.72781479,0.000324,3]
[313295962,1707105247480,500.0,0.0002,2]
[313295971,1707106231408,-178.49045559,0.00024999,2]
[313295972,1707106231417,-1064.23532533,0.00025,2]
[313295973,1707106231427,-500.0,0.0003,2]
[313295974,1707106231436,-155.0,0.0003,2]
[313295975,1707106231445,-238.55,0.00030545,2]
[313295976,1707106231456,-250.0,0.00031992,2]
[313295977,1707106231465,-556.71,0.00032162,2]
[313295978,1707106231474,-12257.15345214,0.00032281,4]
[313295979,1707106231486,-1938.36316489,0.00032281,4]
[313295980,1707106231495,-159.11973398,0.00032282,2]
[313295981,1707106231504,-150.0,0.0003238,3]
[313295982,1707106231513,-646.47648549,0.00032382,2]
[313295983,1707106231522,-296.21024533,0.0003239,4]
[313295984,1707106231531,-499.99,0.0003239,2]
[313295985,1707106231540,-150.46682247,0.0003239,2]
[313295986,1707106231549,-347.17,0.0003239,2]
[313295987,1707106231558,-66040.12578798,0.00032392,2]
[313295988,1707106231569,-1129.24535294,0.00032392,2]
[313295989,1707106231584,-907.0,0.00032392,2]
[313295990,1707106231607,-484.10191491,0.00032392,2]
[313295991,1707106231632,-68591.45285684,0.00032392,2]
[313295992,1707106231641,-3097.61314662,0.00032395,5]
[313295993,1707106231650,-414.03978078,0.00032396,4]
[313295994,1707106231660,-155.20597533,0.00032397,2]
[313295995,1707106231668,-288.95682794,0.00032397,4]
[313295996,1707106231678,-1215.40717902,0.00032397,4]
[313295997,1707106231687,-11503.25235633,0.00032397,2]
[313296000,1707106231702,-89643.52560633,0.00032397,2]
[313296002,1707106231714,-11791.52773092,0.00032397,2]
[313296004,1707106231726,-155.42950047,0.00032398,4]
[313296005,1707106231734,-1000.0,0.00032399,2]
[313296006,1707106231743,-221.25891207,0.00032399,2]
[313296007,1707106231752,-7638.21262953,0.000324,3]
[313296009,1707106231762,-200.0,0.000324,2]
[313296011,1707106231771,-10000.0,0.00032442,2]
[313296012,1707106231780,-210.0,0.00032577,2]
[313296014,1707106231789,-272.12,0.00032663,2]
[313296016,1707106231798,-238.55,0.00032809,2]
[313296018,1707106231807,-159.11973388,0.00033572,2]
[313296020,1707106231817,-556.71,0.00033806,2]
[313296022,1707106231826,-471.01733128,0.00034742,10]
[313296024,1707106231835,-1960.30527921,0.00034742,10]
[313296026,1707106231844,-331.87454523,0.00034742,10]
[313296028,1707106231853,-150.0,0.00034794,2]
[313296030,1707106231862,-967.91777208,0.00034804,7]
[313296032,1707106231871,-159.11973388,0.00034863,2]
[313296034,1707106231880,-166.79,0.00034864,2]
[313296036,1707106231889,-378.98145253,0.0003487,14]
[313296074,1707106237623,-209.0,0.00032577,2]
[313296075,1707106237632,-2328.23905919,0.0003487,14]
[313296076,1707106237641,-250.0,0.00034904,2]
[313296077,1707106237651,-219.08,0.00034973,10]
[313296078,1707106237660,-1000.0,0.00035057,2]
[313296079,1707106237669,-238.55,0.00035073,2]
[313296080,1707106237678,-26.13094081,0.00035076,4]
[313296081,1707106237734,-728.10015642,0.00035076,4]
[313296082,1707106237746,-741.27723955,0.00035076,4]
[313296083,1707106237760,-420.8888349,0.00035076,4]
[313296084,1707106237771,-296.21024533,0.00035076,4]
[313296087,1707106239989,-426.8,0.00035076,4]
[313296088,1707106240047,-2489.98258299,0.00035076,4]
[313296089,1707106240057,-158.5,0.00035082,2]
[313296090,1707106240066,-179.17,0.00035341,2]
[313296091,1707106240076,-556.71,0.0003545,2]
[313296092,1707106240086,-180.0,0.00035595,2]
[313296093,1707106240095,-453.42944585,0.0003591,5]
[313296094,1707106240105,-159.11973388,0.00036153,2]
[313296095,1707106240114,-599.999999,0.00037,38]
[313296096,1707106240123,-698.8624353,0.00037003,8]
[313296097,1707106240136,-269.05533674,0.00037003,8]
[313296098,1707106240146,-556.71,0.00037094,2]
[313296099,1707106240156,-90.5741845,0.00037336,2]
[313296100,1707106240168,-147.9758155,0.00037336,2]
[313296101,1707106240178,-159.11973388,0.00037443,2]
[313296102,1707106240187,-1091.5840578,0.0003755,2]
[313296103,1707106240868,-1028.09610869,0.0003755,2]
[313296104,1707106242507,-1023.52,0.0003755,2]
[313296109,1707106271825,162.92116652,0.0002,2]
[313296110,1707106389217,500.0,0.00019839,2]
[313296111,1707106389456,437.07883348,0.0001984,2]
[313296112,1707106389479,62.92116652,0.0001984,2]
[313296113,1707107180091,150.0,0.00027,30]
[313296123,1707107431551,-168.01645119,0.00025996,2]
[313296125,1707107431561,-311.29160701,0.00025997,2]
[313296126,1707107431570,-828.61683392,0.00026999,2]
[313296127,1707107431660,-456.31690773,0.00026999,2]
[313296128,1707107431770,-298.68682809,0.00026999,2]
[313296129,1707107431781,-28.46574435,0.00026999,2]
[313296130,1707107431790,-200.0,0.00027,2]
[313296131,1707107431800,-511.14116011,0.00027,2]
[313296132,1707107431808,-5.29686369,0.0003,2]
[313296133,1707107431825,-494.70313631,0.0003,2]
[313296134,1707107431834,-155.0,0.0003,2]
[313296135,1707107431843,-867.06272801,0.000325,3]
[313296136,1707107431854,-695.97872365,0.000325,3]
[313296137,1707107431865,-792.95854834,0.000325,3]
[313296138,1707107431874,-3491.99425166,0.000325,3]
[313296157,1707107437580,-372.99174745,0.000325,3]
[313296158,1707107437636,-380.21994964,0.000325,3]
[313296159,1707107437648,-6420.88416689,0.000325,3]
[313296160,1707107437694,-7260.90988436,0.000325,3]
[313296161,1707107437703,-158.49625368,0.00034642,2]
[313296162,1707107437712,-1037.16833237,0.00034742,10]
[313296163,1707107437721,-171.77516278,0.00034742,10]
[313296164,1707107437730,-210.0,0.00035062,2]
[313296165,1707107437740,-186.17623481,0.00035069,2]
[313296166,1707107437763,-49.09376519,0.00035069,2]
[313296167,1707107437772,-3620.53,0.00035875,2]
[313296168,1707107437782,-1332.92,0.00035875,2]
[313296169,1707107437791,-11860.17,0.00035875,2]
[313296170,1707107437800,-1914.08,0.00035875,2]
[313296171,1707107437809,-40.51884656,0.00035876,2]
[313296176,1707107440233,-459.36115344,0.00035876,2]
[313296177,1707107440242,-2517.402,0.00035877,2]
[313296178,1707107440252,-880.46,0.00035877,2]
[313296179,1707107440261,-1304.697,0.00035877,2]
[313296180,1707107440270,-12954.659,0.00035877,2]
[313296181,1707107440279,-1001.0,0.00035877,2]
[313296182,1707107440288,-238.383,0.00035877,2]
[313296183,1707107440298,-424.361,0.00035877,2]
[313296184,1707107440307,-547.79,0.00035877,2]
[313296185,1707107440319,-859.0,0.00035877,2]
[313296186,1707107440328,-320.0,0.00035877,2]
[313296187,1707107440337,-158.49625361,0.00035957,2]
[313296188,1707107440347,-150.0,0.00036733,2]
[313296189,1707107440356,-250.0,0.00036786,2]
[313296190,1707107440366,-250.0,0.00036948,2]
[313296191,1707107440375,-165.2,0.00036963,2]
[313296192,1707107440384,-450.25,0.00037062,2]
[313296193,1707107440395,-10000.0,0.00037097,35]
[313296194,1707107440405,-14902.0,0.0003722,2]
[313296195,1707107440414,-187.18,0.00037244,2]
[313296196,1707107440423,-158.49625361,0.00037272,2]
[313296197,1707107440434,-235.27,0.00037333,2]
[313296198,1707107440443,-150.0,0.00037357,2]
[313296199,1707107440452,-179.8024119,0.00037392,2]
[313296200,1707107440461,-165.19,0.00037501,2]
[313296201,1707107440470,-7295.05,0.0003754,10]
[313296202,1707107440479,-4548.80847172,0.0003755,2]
[313296203,1707107440498,-133.98830487,0.0003755,2]
[313296204,1707107440507,-2000.0,0.0003755,2]
[313296205,1707107440517,-200.0,0.0003755,2]
[313296206,1707107440526,-2000.0,0.0003755,2]
[313296207,1707107440535,-200.0,0.0003755,2]
[313296208,1707107440544,-1000.0,0.00037671,2]
[313296209,1707107440553,-158.5,0.00037812,2]
[313296210,1707107440562,-200.0,0.00037926,2]
[313296211,1707107440571,-226.96136346,0.00037926,2]
[313296212,1707107440583,-993.92188756,0.00037926,2]
[313296213,1707107440594,-757.69748552,0.00037926,2]
[313296214,1707107440604,-21.41926346,0.00037926,2]
[313296215,1707107440613,-200.0,0.00037926,2]
[313296216,1707107440622,-670.93369547,0.00037992,2]
[313296217,1707107440631,-81.71987882,0.00038356,2]
[313296218,1707107440646,-68.28012118,0.00038356,2]
[313296219,1707107440654,-158.49625361,0.00038586,2]
[313296220,1707107440663,-85.74972519,0.00038705,2]
[313296221,1707107440993,-364.50027481,0.00038705,2]
[313296222,1707107441002,-236.0,0.00038877,2]
[313296223,1707107441012,-842.31368923,0.00039,2]
[313296224,1707107441021,-156.32540473,0.00039177,4]
[313296225,1707107441031,-191.17918465,0.00039177,4]
[313296226,1707107441040,-222.85985053,0.00039179,4]
[313296227,1707107441049,-249.46178907,0.00039179,4]
[313296228,1707107441058,-150.0,0.00039366,2]
[313296229,1707107441067,-175.74430534,0.00039475,2]
[313296230,1707107441077,-657.03655037,0.00039563,4]
[313296231,1707107441092,-558.89350208,0.00039563,4]
[313296232,1707107441104,-512.39217212,0.00039563,4]
[313296233,1707107441115,-888.49130964,0.00039563,4]
[313296252,1707107442580,-158.266,0.00035475,2]
[313296253,1707107442590,-7295.05,0.0003754,10]
[313296254,1707107442599,-10432.69164755,0.00039563,4]
[313296256,1707107442608,-946.88538598,0.00039563,4]
[313296258,1707107442618,-2265.23379337,0.00039564,4]
[313296260,1707107442630,-3840.71797087,0.00039574,2]
[313296262,1707107442650,-1462.49481899,0.00039574,2]
[313296263,1707107442663,-2499.40594227,0.00039574,2]
[313296264,1707107442675,-935.399985,0.00039574,2]
[313296265,1707107442687,-1352.99793441,0.00039574,2]
[313296266,1707107442696,-195.15206559,0.00039575,4]
[313296267,1707107442707,-2296.08,0.00039575,4]
[313296268,1707107442723,-1524.90027628,0.00039575,4]
[313296269,1707107442779,-728.16,0.00039575,4]
[313296270,1707107442802,-2250.26978908,0.00039575,4]
[313296271,1707107442812,-240.71499822,0.00039575,4]
[313296272,1707107442821,-217.04625121,0.00039575,4]
[313296273,1707107442830,-1410.50139065,0.00039575,4]
[313296274,1707107442841,-465.15169898,0.00039575,4]
[313296275,1707107442852,-321.18733183,0.00039575,4]
[313296276,1707107442872,-3335.03856103,0.00039575,4]
[313296277,1707107442881,-3795.67194783,0.00039575,4]
[313296300,1707107445603,-2980.34582538,0.00039575,4]
[313296301,1707107445659,-1620.43638183,0.00039575,4]
[313296302,1707107445717,-512.67,0.00039575,4]
[313296303,1707107445729,-574.8571518,0.00039575,4]
[313296304,1707107445740,-1280.82279286,0.00039575,4]
[313296305,1707107445829,-1339.74640661,0.00039575,4]
[313296306,1707107445882,-4213.80216288,0.00039575,4]
[313296321,1707108631777,-162.25097554,0.00025099,2]
[313296322,1707108631787,-150.0,0.000251,2]
[313296323,1707108631798,-183.24100714,0.00026999,2]
[313296324,1707108631833,-906.8344942,0.00026999,2]
[313296325,1707108631845,-522.01081275,0.00026999,2]
[313296326,1707108631855,-176.88350218,0.00027,2]
[313296327,1707108631864,-161.49941094,0.0003,4]
[313296328,1707108631874,-155.0,0.00034567,2]
[313296329,1707108631884,-166.016897,0.00034568,2]
[313296330,1707108631895,-1534.18344388,0.00034742,10]
[313296331,1707108631905,-556.15141353,0.00034742,10]
[313296332,1707108631918,-40.6545301,0.00034742,10]
[313296333,1707108631927,-158.2139543,0.00035426,2]
[313296334,1707108631938,-301.32,0.00035806,2]
[313296335,1707108631946,-150.0,0.00035844,2]
[313296336,1707108631957,-499.99,0.00035845,2]
[313296337,1707108631967,-847.0,0.00035845,2]
[313296338,1707108631977,-2485.78365652,0.00035845,2]
[313296339,1707108632001,-277.18118104,0.00035845,2]
[313296340,1707108632012,-104.03516244,0.00035845,2]
[313296341,1707108632021,-828.965,0.00035845,2]
[313296342,1707108632030,-437.537,0.00035845,2]
[313296343,1707108632039,-56.19379973,0.00035845,2]
[313296344,1707108632055,-357.04436796,0.00035845,2]
[313296346,1707108632066,-500.0,0.00035845,2]
[313296348,1707108632081,-319.76183231,0.00035845,2]
[313296350,1707108632090,-1001.0,0.00035845,2]
[313296352,1707108632099,-315.659,0.00035845,2]
[313296354,1707108632108,-150.555,0.00035845,2]
[313296355,1707108632117,-2930.532,0.00035845,2]
[313296356,1707108632126,-150.0,0.00035845,2]
[313296357,1707108632135,-2293.55,0.00035845,2]
[313296358,1707108632144,-150.32,0.00035845,2]
[313296359,1707108632154,-150.768,0.00035845,2]
[313296360,1707108632163,-150.0,0.00035845,2]
[313296361,1707108632173,-3587.21,0.00036213,2]
[313296362,1707108632182,-158.2139543,0.00036807,2]
[313296363,1707108632191,-183.28,0.00037623,120]
[313296364,1707108632200,-2000.0,0.00037639,2]
[313296365,1707108632209,-158.5,0.00037739,2]
[313296366,1707108632218,-250.0,0.00037878,2]
[313296367,1707108632228,-165.2,0.00037878,2]
[313296368,1707108632237,-554.26,0.00037883,2]
[313296369,1707108632250,-3115.73541188,0.00037894,2]
[313296370,1707108632260,-165.75,0.00037901,2]
[313296371,1707108632271,-150.0,0.00037967,2]
[313296372,1707108632280,-9658.39,0.00037983,35]
[313296373,1707108632291,-301.32,0.00038069,2]
[313296374,1707108632302,-176.23,0.00038178,2]
[313296375,1707108632312,-158.2139543,0.00038188,2]
[313296376,1707108632324,-150.0,0.00038356,2]
[313296377,1707108632334,-695.53566574,0.00038386,4]
[313296378,1707108632343,-379.75428374,0.00038388,4]
[313296379,1707108632352,-1000.0,0.00038543,2]
[313296380,1707108632363,-1292.19786558,0.00038795,2]
[313296381,1707108632373,-150.0,0.00038845,2]
[313296382,1707108632383,-1292.19786558,0.00038977,2]
[313296383,1707108632393,-842.31368923,0.00039174,2]
[313296384,1707108632402,-336.51684021,0.00039175,4]
[313296385,1707108632411,-274.57701239,0.00039179,3]
[313296386,1707108632422,-1292.19786558,0.00039301,2]
[313296387,1707108632431,-150.0,0.00039366,2]
[313296388,1707108632441,-303.08226885,0.00039474,4]
[313296389,1707108632450,-158.16987477,0.00039475,2]
[313296390,1707108632460,-20236.3092,0.00039475,2]
[313296391,1707108632469,-1097.7644,0.00039475,2]
[313296392,1707108632478,-433.105,0.00039477,2]
[313296393,1707108632488,-554.26,0.00039526,2]
[313296394,1707108632497,-158.2139543,0.00039569,2]
[313296395,1707108632508,-477.33517163,0.00039571,4]
[313296396,1707108632520,-585.84054145,0.00039571,4]
[313296397,1707108632530,-155.40635839,0.00039571,4]
[313296398,1707108632541,-4747.22532727,0.00039572,4]
[313296399,1707108632552,-1138.66181458,0.00039573,4]
[313296400,1707108632563,-21574.12542444,0.00039573,4]
[313296401,1707108632791,-20172.29488644,0.00039573,4]
[313296402,1707108632810,-307.51494231,0.00039573,4]
[313296403,1707108632823,-420.78744149,0.00039573,4]
[313296404,1707108632840,-150.444,0.00035845,2]
[313296405,1707108632852,-796.22362042,0.00039573,4]
[313296406,1707108632863,-1000.0,0.00039573,2]
[313296407,1707108632873,-259.47287612,0.00039573,4]
[313296408,1707108632884,-529.12102492,0.00039573,4]
[313296409,1707108632894,-359.82233788,0.00039573,4]
[313296410,1707108632905,-1392.97493485,0.00039573,4]
[313296411,1707108632916,-341.84293463,0.00039573,2]
[313296479,1707108641230,-1373.5737,0.00035745,2]
[313296480,1707108641240,-210.0,0.00037296,2]
[313296481,1707108641251,-151.14314893,0.00039179,2]
[313296482,1707108641260,-4863.36,0.00039563,10]
[313296483,1707108641270,-1720.32300677,0.00039573,2]
[313296484,1707108641279,-179.92378906,0.00039574,4]
[313296485,1707108641290,-168.10065865,0.00039574,4]
[313296486,1707108641299,-3571.22858025,0.00039574,2]
[313296487,1707108641311,-378.39190117,0.00039574,2]
[313296488,1707108641322,-16705.39067338,0.00039575,4]
[313296489,1707108641336,-503.21609964,0.00039575,4]
[313296490,1707108641352,-461.74,0.00039575,4]
[313296493,1707108642974,-42443.5131081,0.00039575,4]
[313296494,1707108642984,-207.26901576,0.00039575,4]
[313296495,1707108642993,-200.0,0.00039575,2]
[313296496,1707108643003,-1030.58106699,0.00039575,4]
[313296497,1707108643013,-155.68927659,0.00039575,4]
[313296498,1707108643022,-296.67037072,0.00039575,2]
[313296499,1707108643033,-8683.74227372,0.00039575,4]
[313296500,1707108643045,-5257.91463823,0.00039575,2]
[313296501,1707108643055,-1050.18638374,0.00039575,4]
[313296502,1707108643066,-237.40288908,0.00039575,4]
[313296503,1707108643076,-286.93491629,0.00039575,4]
[313296504,1707108643087,-500.0,0.00039575,7]
[313296505,1707108643097,-1516.104247,0.00039576,2]
[313296506,1707108643107,-45000.0,0.00039577,2]
[313296507,1707108643117,-1292.19786558,0.00039853,2]
[313296508,1707108643127,-176.29954474,0.0004,120]
[313296509,1707108643138,-62369.33060369,0.0004,2]
[313296510,1707108643147,-255.0,0.0004,12]
[313296511,1707108643159,-2103.01372767,0.0004,4]
[313296512,1707108643169,-293.5731276,0.0004,12]
[313296513,1707108643179,-1549.0,0.0004,14]
[313296514,1707108643188,-255.0,0.0004,12]
[313296515,1707108643198,-1292.19786562,0.00040146,2]
[313296516,1707108643209,-301.32,0.00040333,2]
[313296517,1707108643220,-150.0,0.00040375,2]
[313296518,1707108643229,-185.18,0.000404,7]
[313296519,1707108643239,-200.0,0.00040402,7]
[313296520,1707108643254,-178.27423497,0.00040517,2]
[313296521,1707108643262,-203.60885423,0.00040586,2]
[313296522,1707108643273,-345.0,0.000407,30]
[313296523,1707108643283,-1000.0,0.000407,30]
[313296524,1707108643294,-158.16987477,0.00040744,3]
[313296525,1707108643306,-158.2139543,0.00040951,2]
[313296526,1707108643315,-158.81514119,0.00040996,2]
[313296527,1707108643327,-482.98744914,0.00040996,13]
[313296528,1707108643337,-1913.03201829,0.00041,2]
[313296529,1707108643346,-254749.52397776,0.00041,7]
[313296530,1707108643356,-151.0,0.00041096,14]
[313296531,1707108643366,-151.0,0.00041096,14]
[313296532,1707108643375,-151.26704,0.00041096,14]
[313296533,1707108643385,-1506.85164052,0.000411,2]
[313296534,1707108643394,-2000.0,0.000411,2]
[313296535,1707108643403,-554.26,0.0004117,2]
[313296536,1707108643412,-939.99079868,0.00041371,10]
[313296537,1707108643421,-150.0,0.00041384,2]
[313296538,1707108643430,-800.0,0.00041546,10]
[313296539,1707108643439,-800.0,0.00041547,10]
[313296540,1707108643448,-800.0,0.00041547,10]
[313296541,1707108643457,-210.0,0.00041792,2]
[313296542,1707108643466,-209.4301665,0.000418,17]
[313296543,1707108643476,-200.00000001,0.0004185,30]
[313296544,1707108643485,-191.27903606,0.00041888,2]
[313296545,1707108643494,-7186.16330097,0.00041892,11]
[313296546,1707108643503,-95232.46221003,0.00041892,8]
[313296547,1707108643515,-8087.66340397,0.00041892,8]
[313296548,1707108643525,-252.72062988,0.00041892,4]
[313296549,1707108643534,-204.044973,0.00041892,14]
[313296550,1707108643544,-615.99377534,0.00041898,2]
[313296551,1707108643553,-4514.44292166,0.00041898,4]
[313296552,1707108643564,-6296.62062338,0.00041899,4]
[313296553,1707108643573,-4687.8665897,0.000419,4]
[313296554,1707108643582,-300.0,0.000419,17]
[313296555,1707108643592,-200.0,0.000419,17]
[313296556,1707108643603,-184.734567,0.000419,2]
[313296557,1707108643613,-370.1239,0.000419,30]
[313296558,1707108643623,-376.9238,0.000419,30]
[313296559,1707108643631,-3610.83792099,0.00041902,4]
[313296560,1707108643643,-1420.10342999,0.00041902,4]
[313296561,1707108643673,-3653.19699421,0.00041902,4]
[313296562,1707108643683,-3139.18389312,0.00041924,30]
[313296563,1707108643696,-1987.9053079,0.00041924,30]
[313296564,1707108643709,-3114.57793299,0.00041924,30]
[313296565,1707108643718,-1841.55413419,0.00041924,120]
[313296566,1707108643729,-1764.399,0.00041924,7]
[313296567,1707108643738,-169.78349317,0.00041924,18]
[313296568,1707108643747,-500.0,0.00041924,120]
[313296569,1707108643757,-164.0,0.00041924,120]
[313296570,1707108643766,-1376.7500365,0.00041924,60]
[313296571,1707108643775,-625.39922426,0.00041924,30]
[313296572,1707108643784,-192.37590946,0.00041924,90]
[313296573,1707108643793,-322.0,0.00041924,120]
[313296574,1707108643803,-176.2870757,0.00041924,120]
[313296575,1707108643814,-282.9006671,0.00041924,60]
[313296576,1707108643824,-432.35670853,0.00041924,120]
[313296577,1707108643834,-274.46959761,0.00041924,120]
[313296578,1707108643845,-2015.1800778,0.00041924,120]
[313296579,1707108643855,-153.76212184,0.00041924,120]
[313296580,1707108643866,-423.62609418,0.00041924,30]
[313296581,1707108643875,-192.18447746,0.00041924,30]
[313296582,1707108643885,-166.13708542,0.00041924,60]
[313296583,1707108643895,-1387.41016262,0.00041924,120]
[313296584,1707108643905,-168.19770796,0.00041924,120]
[313296585,1707108643914,-435.7467158,0.00041924,30]
[313296586,1707108643922,-227.0,0.00041924,120]
[313296587,1707108643932,-399.865589,0.00041924,30]
[313296588,1707108643942,-387.2479133,0.00041924,2]
[313296589,1707108643952,-412.6241746,0.00041932,2]
[313296590,1707108643964,-217.8052375,0.00041932,2]
[313296591,1707108643973,-155.1143194,0.00041961,2]
[313296592,1707108643983,-3480.12308709,0.0004199,11]
[313296593,1707108644028,-352.73851809,0.00039575,7]
[313296594,1707108644047,-147.26148191,0.00039575,7]
[313296595,1707108644057,-377.02530122,0.0004199,11]
[313296611,1707108645832,-308.87403957,0.00039567,10]
[313296613,1707108645847,-3743.92596043,0.00039567,10]
[313296615,1707108645857,-244.46925284,0.0004199,11]
[313296626,1707108645990,-3084.54565982,0.0004199,11]
[313296627,1707108645999,-2521.92989322,0.00042,30]
[313296629,1707108646009,-6259.85925486,0.00042,30]
[313296650,1707108745326,566.6956742,0.00020379,2]
[313296651,1707108751480,296.11088142,0.00020608,2]
[313296652,1707108759293,1006.08960501,0.00020607,2]
[313296653,1707108760423,738.76743162,0.00021,2]
[313296654,1707108781285,1006.08960501,0.00020607,2]
[313296655,1707108847372,323.32563622,0.0002,2]
[313296656,1707108847393,4000.0,0.0002,2]
[313296657,1707108847412,4000.0,0.0002,2]
[313296658,1707108847432,423.7481776,0.0002,2]
[313296659,1707108923222,800.0,0.00022502,2]
[313296661,1707109510919,187.62,0.00022502,2]
[313296686,1707109831914,-282.27416971,0.00022651,2]
[313296687,1707109831924,-162.25097554,0.00022652,2]
[313296689,1707109831934,-155.9077277,0.00022653,2]
[313296690,1707109831943,-247.99965518,0.00022654,2]
[313296691,1707109831952,-1069.0,0.00022661,2]
[313296692,1707109831961,-157.91764544,0.000228,2]
[313296693,1707109831970,-262.06601744,0.00022897,2]
[313296694,1707109831979,-286.32418235,0.00022897,2]
[313296695,1707109831988,-3197.82550138,0.00022898,2]
[313296696,1707109831997,-2998.10932369,0.00022899,2]
[313296697,1707109832008,-300.0,0.00022899,2]
[313296698,1707109832082,-9836.68309227,0.00022899,2]
[313296699,1707109832092,-564.28815814,0.00022899,2]
[313296700,1707109832103,-22206.90519395,0.00022899,2]
[313296701,1707109832114,-632.7568704,0.00022899,2]
[313296702,1707109832125,-5073.50287991,0.00022899,2]
[313296703,1707109832147,-346.80171835,0.00022899,2]
[313296704,1707109832158,-1021.05941558,0.00022899,2]
[313296713,1707109837957,-155.9077277,0.0002265,2]
[313296715,1707109837967,-28855.43109246,0.00022899,2]
[313296717,1707109837976,-2589.05876616,0.000229,2]
[313296719,1707109837985,-985.33378243,0.000229,2]
[313296721,1707109837996,-415.1144149,0.000229,2]
[313296724,1707109838016,-610.7937064,0.000229,2]
[313296725,1707109838075,-1257.66957467,0.000229,2]
[313296726,1707109838086,-542.33042533,0.000229,2]
[313296929,1707109840480,-8297.88062454,0.000229,2]
[313296931,1707109840492,-541.4572288,0.000229,2]
[313296945,1707109840839,-31797.38247193,0.000229,2]
[313296946,1707109840849,-153.35,0.000251,2]
[313296947,1707109840859,-1612.08631409,0.00026,2]
[313296948,1707109840868,-157.91764544,0.00028851,2]
[313296949,1707109840878,-155.0,0.0003,2]